bitfinex/quotes_SOLUSD_20260208
["timestamp","ask_amount","ask_price","bid_price","bid_amount"]
[1770558789329,0.47190233,88.474,88.415,0.46130219]
[1770558789533,0.47190233,88.487,88.421,0.46130219]
[1770558789915,7.52483593,88.499,88.43,0.46130219]
[1770558790119,7.52483593,88.499,88.443,0.46130219]
[1770558791126,0.57190233,88.49,88.448,0.46130219]
[1770558792424,0.1,88.49,88.453,0.46130219]
[1770558792817,0.57190233,88.49,88.453,0.46130219]
[1770558794042,0.1,88.49,88.453,0.46130219]
[1770558794441,0.5992227,88.49,88.453,0.46130219]
[1770558794633,0.5992227,88.49,88.455,0.49223651]
[1770558795545,0.5992227,88.49,88.457,0.46551457]
[1770558796747,0.5992227,88.49,88.46,0.46551457]
[1770558798548,0.1,88.49,88.46,0.46551457]
[1770558799326,0.1,88.49,88.458,9.1]
[1770558799327,0.1,88.49,88.461,39.56545821]
[1770558799526,0.1,88.49,88.462,0.46551457]
[1770558801344,0.1,88.49,88.459,9.1]
[1770558801345,0.45903087,88.489,88.459,9.1]
[1770558801647,0.45903087,88.489,88.46,11.30454442]
[1770558801953,0.45903087,88.489,88.462,0.46551457]
[1770558802826,0.45903087,88.489,88.461,9.1]
[1770558803034,0.45903087,88.489,88.46,11.30454442]
[1770558805337,0.45903087,88.487,88.452,11.30554873]
[1770558805536,0.45903087,88.487,88.438,0.46551457]
[1770558805932,0.45903087,88.487,88.451,11.30562872]
[1770558806753,0.45903087,88.487,88.455,11.30510406]
[1770558807141,0.45903087,88.487,88.456,0.46551457]
[1770558807745,0.1,88.49,88.456,0.46551457]
[1770558808055,0.55903087,88.49,88.456,0.46551457]
[1770558808252,0.1,88.49,88.456,0.46551457]
[1770558808453,0.1,88.49,88.437,96.11346339]
[1770558808454,0.1,88.49,88.461,0.46551457]
[1770558808660,0.45903087,88.489,88.46,5.13032502]
[1770558808963,0.45903087,88.489,88.461,0.46551457]
[1770558809464,0.45903087,88.489,88.462,11.30428884]
[1770558811655,0.45903087,88.489,88.445,5.13032502]
[1770558811656,1e-08,88.49,88.466,0.39981338]
[1770558811836,1e-08,88.49,88.468,0.39981338]
[1770558812454,0.45903087,88.489,88.467,9.1]
[1770558813243,0.45903088,88.49,88.468,0.3998122]
[1770558814938,0.45903088,88.49,88.468,11.30352217]
[1770558815959,1e-08,88.49,88.469,0.39980876]
[1770558816582,1e-08,88.49,88.465,7.58258427]
[1770558816863,1e-08,88.49,88.468,11.7033298]
[1770558817044,1e-08,88.49,88.469,0.39980763]
[1770558818258,1e-08,88.49,88.47,11.30326664]
[1770558818459,1e-08,88.49,88.471,0.39980652]
[1770558820265,7.32663966,88.498,88.472,39.56053892]
[1770558820266,6.92683533,88.498,88.472,39.56053892]
[1770558821168,0.1,88.5,88.472,39.56053892]
[1770558821666,0.1,88.5,88.475,5.13032502]
[1770558821962,0.60004666,88.52,88.475,5.13032502]
[1770558821963,0.1,88.52,88.475,5.13032502]
[1770558822354,0.1,88.52,88.479,5.13032502]
[1770558824379,0.1,88.52,88.483,5.13032502]
[1770558827172,0.1,88.52,88.488,5.13032502]
[1770558827878,0.50004666,88.518,88.488,5.13032502]
[1770558830077,0.50004666,88.518,88.493,5.13032502]
[1770558830252,0.50004666,88.518,88.494,6.28258427]
[1770558830757,0.50004666,88.509,88.495,6.28258427]
[1770558832581,0.1,88.52,88.497,0.48722756]
[1770558832780,0.1,88.52,88.496,11.29994576]
[1770558832781,0.1,88.52,88.498,0.48722756]
[1770558834782,0.1,88.52,88.499,11.2995627]
[1770558834983,0.57341951,88.52,88.5,0.48722756]
[1770558836081,0.57341951,88.52,88.501,6.28258427]
[1770558836684,0.1,88.52,88.503,0.48722756]
[1770558840493,0.57341951,88.52,88.504,11.29892434]
[1770558841501,0.1,88.52,88.504,11.29892434]
[1770558841798,0.1,88.52,88.504,18.06873617]
[1770558842995,0.1,88.52,88.505,0.48722756]
[1770558843983,0.1,88.52,88.506,11.29866901]
[1770558846005,0.57341951,88.52,88.506,11.29866901]
[1770558847408,0.1,88.52,88.506,11.29866901]
[1770558847604,0.1,88.52,88.507,0.48722756]
[1770558848411,0.1,88.52,88.506,11.29866901]
[1770558849498,0.1,88.52,88.506,11.78589657]
[1770558849898,0.47341951,88.519,88.505,6.28258427]
[1770558850101,0.47341951,88.519,88.505,17.5813798]
[1770558852302,0.47341951,88.54,88.507,0.48722756]
[1770558852501,0.47341951,88.536,88.507,0.48722756]
[1770558852911,0.47341951,88.531,88.507,0.48722756]
[1770558853401,0.57341951,88.53,88.507,0.48722756]
[1770558854315,0.57341951,88.53,88.505,17.5813798]
[1770558859012,0.57341951,88.53,88.507,11.29854135]
[1770558863122,0.57341951,88.53,88.495,39.55025707]
[1770558864212,0.57341951,88.53,88.495,40.04937666]
[1770558864415,0.57341951,88.53,88.486,11.30109842]
[1770558864904,0.47706336,88.528,88.478,11.30224462]
[1770558865103,0.47706336,88.528,88.478,11.80136421]
[1770558865320,0.47706336,88.528,88.481,5.13032502]
[1770558865528,0.47706336,88.528,88.482,0.49911959]
[1770558865739,0.47706336,88.528,88.486,0.49911959]
[1770558869636,0.47706336,88.528,88.491,0.49911959]
[1770558869931,0.47706336,88.526,88.491,0.49911959]
[1770558871344,0.47706336,88.526,88.492,6.28258427]
[1770558872636,0.47706336,88.526,88.493,11.30032883]
[1770558873135,0.47706336,88.524,88.473,11.30285497]
[1770558873424,0.47706336,88.524,88.478,11.80215707]
[1770558873636,0.47706336,88.524,88.479,0.50001331]
[1770558874719,39.53774724,88.523,88.479,0.50001331]
[1770558875325,39.53774724,88.523,88.473,0.50001331]
[1770558876231,39.53774724,88.523,88.468,11.30342838]
[1770558876418,0.1,88.53,88.468,11.30342838]
[1770558881925,0.1,88.53,88.469,0.50001331]
[1770558882131,0.1,88.53,88.471,0.50001331]
[1770558885927,0.1,88.53,88.473,0.50001331]
[1770558890431,0.1,88.53,88.475,0.50001331]
[1770558891727,0.1,88.53,88.477,0.50001331]
[1770558893041,0.1,88.53,88.479,0.50001331]
[1770558897743,0.1,88.53,88.481,0.50001331]
[1770558899646,0.1,88.53,88.483,0.50001331]
[1770558899838,0.1,88.53,88.484,0.50001331]
[1770558901854,0.1,88.53,88.486,0.50001331]
[1770558902232,0.1,88.53,88.48,0.50001331]
[1770558902454,0.1,88.53,88.486,0.50001331]
[1770558905253,0.1,88.53,88.488,0.50001331]
[1770558907469,0.1,88.53,88.49,0.50001331]
[1770558909458,0.1,88.53,88.492,0.50001331]
[1770558911061,0.1,88.53,88.494,0.50001331]
[1770558915143,0.1,88.53,88.496,0.50001331]
[1770558917160,0.1,88.53,88.498,0.50001331]
[1770558919588,0.1,88.53,88.5,0.50001331]
[1770558921946,0.1,88.53,88.502,0.50001331]
[1770558923466,0.1,88.53,88.504,0.50001331]
[1770558925664,11.29075964,88.568,88.51,0.50001331]
[1770558926749,28.22278323,88.581,88.51,0.50001331]
[1770558927775,18.43271279,88.569,88.512,0.50001331]
[1770558928464,7.1420296,88.569,88.512,0.50001331]
[1770558929269,11.29075964,88.568,88.512,0.50001331]
[1770558929478,7.1420296,88.569,88.512,0.50001331]
[1770558929791,7.1420296,88.569,88.514,0.50001331]
[1770558931273,7.1420296,88.569,88.516,0.50001331]
[1770558931960,11.29075964,88.568,88.516,0.50001331]
[1770558932676,7.1420296,88.569,88.519,0.50001331]
[1770558933460,7.1420296,88.569,88.524,0.50001331]
[1770558933863,7.1420296,88.569,88.523,5.13032502]
[1770558933864,0.1,88.57,88.525,0.50001331]
[1770558938260,0.16312406,88.591,88.53,0.50001331]
[1770558938484,0.19999566,88.59,88.532,0.47550556]
[1770558938688,0.09999566,88.589,88.532,0.47550556]
[1770558941280,0.09999566,88.589,88.537,0.47550556]
[1770558941483,0.09999566,88.589,88.538,3.08251099]
[1770558941785,0.09999566,88.589,88.539,0.47550556]
[1770558943561,0.09999566,88.589,88.543,5.13032502]
[1770558943772,0.09999566,88.589,88.544,0.47550556]
[1770558945079,28.17488437,88.616,88.545,11.79370361]
[1770558945284,28.17488437,88.616,88.546,0.50001114]
[1770558946069,28.17488437,88.616,88.545,11.29369247]
[1770558946283,5.13032502,88.613,88.537,11.29459025]
[1770558946472,5.13032502,88.609,88.537,11.29459025]
[1770558946674,5.13032502,88.605,88.541,11.29412112]
[1770558947183,10.4911869,88.6,88.523,0.50001114]
[1770558948387,5.13032502,88.595,88.523,11.79646864]
[1770558948595,5.13032502,88.595,88.523,11.2964575]
[1770558949988,5.13032502,88.596,88.523,11.79646864]
[1770558950293,12.63714812,88.624,88.51,0.50001114]
[1770558950294,5.13032502,88.592,88.51,0.50001114]
[1770558950985,5.13032502,88.592,88.504,0.50001114]
[1770558952292,5.13032502,88.588,88.504,0.50001114]
[1770558952487,5.13032502,88.588,88.506,0.50001114]
[1770558955374,101.31173501,88.587,88.506,0.50001114]
[1770558955684,5.13032502,88.576,88.506,0.50001114]
[1770558959395,95.96387242,88.575,88.507,11.29854135]
[1770558959593,95.96387242,88.575,88.508,0.50001114]
[1770558963796,95.96387242,88.575,88.51,0.50001114]
[1770558967306,5.13032502,88.572,88.505,0.50001114]
[1770558968103,5.13032502,88.568,88.505,0.50001114]
[1770558969379,95.97254055,88.567,88.505,0.50001114]
[1770558970299,84.68165343,88.567,88.505,0.50001114]
[1770558972186,84.68165343,88.567,88.506,11.29866901]
[1770558972387,84.68165343,88.567,88.507,0.50001114]
[1770558974314,28.22721781,88.567,88.509,0.50001114]
[1770558977389,44.64129212,88.583,88.511,0.50001114]
[1770558977889,39.5109671,88.583,88.511,0.50001114]
[1770558978595,95.95520583,88.583,88.511,0.50001114]
[1770558982308,56.44423873,88.583,88.513,0.50001114]
[1770558987420,56.44423873,88.583,88.515,0.50001114]
[1770558988303,39.50695322,88.592,88.515,0.50001114]
[1770558988617,39.50695322,88.592,88.517,0.50001114]
[1770558989203,10.4911869,88.588,88.517,0.50001114]
[1770558989402,95.95087313,88.587,88.517,0.50001114]
[1770558992616,95.95087313,88.587,88.505,0.50001114]
[1770558995203,95.95087313,88.587,88.507,0.50001114]
[1770558999208,95.95087313,88.587,88.509,0.50001114]
[1770559001542,95.95087313,88.587,88.511,0.50001114]
[1770559004729,95.95087313,88.587,88.512,11.2979031]
[1770559005025,39.50918305,88.587,88.516,0.50001114]
[1770559006756,39.50918305,88.587,88.38,0.2]
[1770559006757,28.22084504,88.587,88.38,0.2]
[1770559006922,5.13032502,88.579,88.421,0.50001114]
[1770559007110,3.08251099,88.493,88.421,0.50001114]
[1770559007316,5.36086188,88.51,88.422,0.50001114]
[1770559007610,5.36086188,88.506,88.422,0.50001114]
[1770559007817,5.13032502,88.506,88.423,0.50001114]
[1770559008528,10.4911869,88.516,88.423,0.50001114]
[1770559008713,96.02892164,88.515,88.423,0.50001114]
[1770559008911,5.13032502,88.506,88.423,0.50001114]
[1770559009111,5.13032502,88.506,88.42,0.2]
[1770559009426,5.13032502,88.506,88.421,0.50001114]
[1770559010720,5.13032502,88.502,88.421,0.50001114]
[1770559012029,5.13032502,88.498,88.421,0.50001114]
[1770559012630,5.13032502,88.494,88.421,0.50001114]
[1770559014226,5.36086188,88.497,88.421,0.50001114]
[1770559014227,5.13032502,88.49,88.421,0.50001114]
[1770559014423,96.05279511,88.493,88.401,0.50001114]
[1770559014424,5.13032502,88.474,88.401,0.50001114]
[1770559015044,5.13032502,88.462,88.401,0.50001114]
[1770559015225,5.36086188,88.461,88.38,11.51472171]
[1770559015431,5.13032502,88.454,88.397,0.50001114]
[1770559015645,5.13032502,88.454,88.388,0.50001114]
[1770559015852,5.13032502,88.454,88.401,0.50001114]
[1770559016058,5.13032502,88.463,88.401,0.50001114]
[1770559016347,5.13032502,88.459,88.401,0.50001114]
[1770559017724,39.56501095,88.462,88.403,0.50001114]
[1770559018138,56.50863547,88.483,88.405,0.50001114]
[1770559018341,5.13032502,88.48,88.405,0.50001114]
[1770559020228,5.13032502,88.476,88.407,0.50001114]
[1770559020643,39.55740909,88.479,88.407,0.50001114]
[1770559020945,39.55740909,88.479,88.41,0.50001114]
[1770559021938,56.49503168,88.504,88.414,5.13032502]
[1770559021939,39.54757573,88.501,88.414,5.13032502]
[1770559022147,39.54757573,88.501,88.415,0.50001114]
[1770559022452,39.54757573,88.501,88.416,0.50001114]
[1770559022642,39.54757573,88.501,88.417,0.50001114]
[1770559022957,39.54757573,88.501,88.418,0.50001114]
[1770559023250,39.54757573,88.501,88.419,0.50001114]
[1770559023449,39.54757573,88.501,88.42,0.50001114]
[1770559023637,39.54757573,88.501,88.421,0.50001114]
[1770559023821,5.13032502,88.518,88.426,5.13032502]
[1770559024021,5.13032502,88.518,88.427,0.50001114]
[1770559025450,39.54042726,88.517,88.429,0.50001114]
[1770559025651,5.13032502,88.514,88.432,0.50001114]
[1770559027546,56.48377221,88.521,88.437,0.50001114]
[1770559027849,5.13032502,88.537,88.437,0.50001114]
[1770559030043,39.5319418,88.536,88.442,0.50001114]
[1770559031554,11.29484051,88.536,88.453,10.4911869]
[1770559031746,11.29484051,88.536,88.459,0.50001114]
[1770559032158,56.4581022,88.562,88.464,0.50001114]
[1770559034663,56.4581022,88.562,88.469,0.50001114]
[1770559035051,5.13032502,88.568,88.469,0.50001114]
[1770559036770,5.13032502,88.564,88.475,0.50001114]
[1770559037565,5.13032502,88.564,88.479,0.50001114]
[1770559037865,5.13032502,88.564,88.48,0.50001114]
[1770559038044,39.51988979,88.563,88.482,39.55606789]
[1770559038356,39.51988979,88.563,88.483,0.50001114]
[1770559038562,39.51988979,88.563,88.486,0.50001114]
[1770559038768,39.51988979,88.563,88.487,0.50001114]
[1770559039255,39.51988979,88.563,88.488,0.50001114]
[1770559039866,11.29139708,88.563,88.491,0.50001114]
[1770559040364,5.13032502,88.598,88.496,0.50001114]
[1770559040546,5.13032502,88.598,88.495,5.13032502]
[1770559040547,5.13032502,88.594,88.498,0.50001114]
[1770559040863,5.13032502,88.594,88.495,5.13032502]
[1770559040864,5.46086188,88.6,88.496,0.50001114]
[1770559041249,5.13032502,88.597,88.496,0.50001114]
[1770559043051,95.94112599,88.596,88.501,0.50001114]
[1770559044670,95.94112599,88.596,88.484,88.3898149]
[1770559044671,5.13032502,88.592,88.498,0.50001114]
[1770559045062,5.13032502,88.588,88.503,0.50001114]
[1770559045948,5.13032502,88.588,88.505,0.50001114]
[1770559046259,95.94654083,88.591,88.505,0.50001114]
[1770559047350,56.43914167,88.591,88.51,0.50001114]
[1770559049445,56.43914167,88.591,88.512,0.50001114]
[1770559051516,56.43914167,88.591,88.513,11.29777546]
[1770559051651,56.43914167,88.591,88.514,0.50001114]
[1770559052759,56.43914167,88.591,88.516,0.50001114]
[1770559055846,56.43914167,88.591,88.518,0.50001114]
[1770559057072,5.13032502,88.588,88.518,0.50001114]
[1770559058050,5.13032502,88.584,88.52,0.50001114]
[1770559058474,39.50918305,88.587,88.52,0.50001114]
[1770559060873,39.50427773,88.598,88.523,0.50001114]
[1770559061372,39.50427773,88.598,88.526,0.50001114]
[1770559062068,39.50427773,88.598,88.531,0.50001114]
[1770559062376,39.50427773,88.598,88.533,0.50001114]
[1770559062570,39.50427773,88.598,88.535,0.50001114]
[1770559062773,7.23114199,88.599,88.535,0.50001114]
[1770559063168,18.5180625,88.599,88.535,0.50001114]
[1770559064056,18.5180625,88.599,88.54,0.50001114]
[1770559064257,7.23114199,88.599,88.54,0.50001114]
[1770559067577,7.23114199,88.599,88.545,0.50001114]
[1770559068172,0.4905751,88.624,88.552,0.45691008]
[1770559068358,0.5905751,88.62,88.552,0.45691008]
[1770559069884,0.5905751,88.62,88.557,0.45691008]
[1770559070178,0.1,88.62,88.562,0.45691008]
[1770559070557,0.1,88.62,88.563,0.45691008]
[1770559071684,0.5905751,88.62,88.563,0.45691008]
[1770559072074,0.5905751,88.62,88.568,0.45691008]
[1770559072275,0.5905751,88.62,88.572,0.45691008]
[1770559072474,0.5905751,88.62,88.573,0.45691008]
[1770559072983,0.5905751,88.62,88.575,0.45691008]
[1770559073173,0.5905751,88.62,88.576,0.45691008]
[1770559073368,0.5905751,88.62,88.576,5.13032502]
[1770559073587,0.4905751,88.618,88.577,0.45691008]
[1770559073969,0.4905751,88.618,88.578,11.28948497]
[1770559074172,0.4905751,88.616,88.579,0.45691008]
[1770559075381,0.45292252,88.629,88.583,0.45691008]
[1770559075789,0.4905751,88.653,88.583,0.45691008]
[1770559076086,11.02920833,88.693,88.588,0.45691008]
[1770559076087,0.4905751,88.651,88.588,0.45691008]
[1770559078884,0.4905751,88.649,88.593,0.45691008]
[1770559079293,0.4905751,88.657,88.593,0.45691008]
[1770559080977,0.4905751,88.655,88.598,0.45691008]
[1770559082883,11.27980688,88.654,88.599,11.2868091]
[1770559083079,0.4905751,88.653,88.6,0.45691008]
[1770559084983,0.4905751,88.651,88.602,0.45691008]
[1770559085485,0.4905751,88.651,88.591,0.45691008]
[1770559086267,0.4905751,88.651,88.595,11.28719536]
[1770559086508,0.4905751,88.651,88.588,0.45691008]
[1770559086694,0.4905751,88.651,88.591,11.28778374]
[1770559087177,0.4905751,88.649,88.591,11.28778374]
[1770559087368,0.4905751,88.649,88.585,11.28847873]
[1770559088098,0.4905751,88.649,88.589,11.28808317]
[1770559088665,0.4905751,88.649,88.59,0.45691008]
[1770559090181,0.4905751,88.647,88.59,0.45691008]
[1770559090770,0.4905751,88.647,88.58,28.22276635]
[1770559090771,0.4905751,88.647,88.583,11.28873399]
[1770559091084,0.4905751,88.647,88.568,28.22664843]
[1770559091085,0.4905751,88.647,88.587,11.28822952]
[1770559091285,0.4905751,88.647,88.588,0.45691008]
[1770559091876,0.4905751,88.647,88.59,11.28789112]
[1770559092072,0.4905751,88.647,88.591,0.45691008]
[1770559092491,0.4905751,88.645,88.591,0.45691008]
[1770559093775,0.4905751,88.645,88.593,0.45691008]
[1770559097893,0.46442901,88.643,88.593,0.45691008]
[1770559099694,0.46442901,88.643,88.595,0.49755509]
[1770559105805,0.46442901,88.641,88.595,0.49755509]
[1770559108005,0.46442901,88.639,88.595,0.49755509]
[1770559111811,39.48555955,88.64,88.595,0.49755509]
[1770559111812,0.46442901,88.637,88.595,0.49755509]
[1770559112593,0.46442901,88.637,88.597,0.49755509]
[1770559114413,0.46442901,88.635,88.597,0.49755509]
[1770559114594,0.46442901,88.635,88.591,0.49755509]
[1770559117099,0.46442901,88.633,88.593,0.49755509]
[1770559118307,0.46442901,88.631,88.577,39.51338628]
[1770559118502,0.46442901,88.631,88.577,11.28961242]
[1770559119597,0.46442901,88.631,88.577,39.01364348]
[1770559120303,0.46442901,88.629,88.58,0.30245622]
[1770559123120,0.46442901,88.629,88.569,0.30245613]
[1770559123307,0.46442901,88.627,88.571,0.30245613]
[1770559124317,0.46442901,88.627,88.575,0.30245611]
[1770559124905,0.46442901,88.627,88.567,0.30245605]
[1770559125199,0.45613448,88.625,88.567,0.30245605]
[1770559126106,0.45613448,88.625,88.558,11.29192003]
[1770559126107,0.45613448,88.625,88.559,0.30245603]
[1770559127410,0.45613448,88.623,88.559,0.30245603]
[1770559127617,0.45613448,88.62,88.553,0.302456]
[1770559128018,0.45613448,88.62,88.547,0.30245598]
[1770559128995,0.45613448,88.62,88.541,0.30245595]
[1770559129228,0.45613448,88.62,88.535,0.30245595]
[1770559129401,0.45613448,88.615,88.535,0.30245595]
[1770559129803,0.45613448,88.606,88.535,0.30245595]
[1770559130002,0.45613448,88.606,88.537,0.30245593]
[1770559131520,0.45613448,88.604,88.539,0.3024559]
[1770559133229,0.45613448,88.604,88.542,0.30245585]
[1770559133707,0.45613448,88.602,88.544,0.30245583]
[1770559135107,0.45613448,88.6,88.546,0.3024558]
[1770559137204,11.2868091,88.599,88.548,0.30245576]
[1770559137607,0.45613448,88.599,88.551,0.30245573]
[1770559137814,11.28598155,88.606,88.551,0.30245573]
[1770559138124,0.45613448,88.615,88.551,0.30245573]
[1770559139035,0.45613448,88.62,88.551,0.30245573]
[1770559139336,0.45613448,88.62,88.556,0.30245571]
[1770559139509,11.28426184,88.619,88.556,0.30245571]
[1770559140333,0.45613448,88.625,88.556,0.30245571]
[1770559142238,0.45613448,88.623,88.56,5.13032502]
[1770559142534,0.45613448,88.623,88.561,0.30245565]
[1770559144237,0.45613448,88.621,88.565,0.3024556]
[1770559149842,0.45613448,88.619,88.567,0.30245548]
[1770559154340,0.46360147,88.617,88.569,0.30245538]
[1770559155748,0.4852255,88.615,88.571,0.30245535]
[1770559157428,0.4852255,88.615,88.57,11.29050468]
[1770559158329,0.4852255,88.613,88.57,0.30245529]
[1770559161235,0.4852255,88.611,88.572,0.30245524]
[1770559163548,0.4852255,88.611,88.574,0.30245521]
[1770559164965,0.4852255,88.638,88.574,0.30245521]
[1770559165151,0.4852255,88.638,88.575,0.30245517]
[1770559166955,0.4852255,88.636,88.577,0.30245514]
[1770559167144,0.4852255,88.636,88.58,0.30245514]
[1770559167655,0.4852255,88.642,88.58,0.30245514]
[1770559170852,0.4852255,88.642,88.585,0.30245508]
[1770559172244,0.4852255,88.64,88.585,0.30245508]
[1770559172543,0.4852255,88.64,88.586,3.5]
[1770559172857,0.4852255,88.638,88.592,0.30245505]
[1770559175357,0.4852255,88.638,88.593,39.50650728]
[1770559175662,0.4852255,88.638,88.594,0.30245502]
[1770559177966,0.4852255,88.638,88.596,0.30245498]
[1770559179945,0.4852255,88.638,88.597,39.50472363]
[1770559180161,0.4852255,88.638,88.598,0.30245495]
[1770559182157,0.4852255,88.638,88.6,0.30245492]
[1770559182464,0.1,88.67,88.602,5.13032502]
[1770559182770,11.27856557,88.664,88.604,0.47060761]
[1770559183679,0.1,88.67,88.608,5.13032502]
[1770559183849,0.1,88.67,88.609,0.47060761]
[1770559184554,0.4852255,88.659,88.609,0.47060761]
[1770559186665,0.4852255,88.659,88.611,0.49840255]
[1770559187860,0.4852255,88.659,88.612,3.5]
[1770559188063,0.4852255,88.659,88.613,0.49840255]
[1770559189067,0.4852255,88.659,88.615,0.49840255]
[1770559190766,0.45036332,88.657,88.615,0.49840255]
[1770559191472,0.45036332,88.657,88.617,0.49840255]
[1770559191859,0.45036332,88.655,88.617,0.49840255]
[1770559193468,0.45036332,88.653,88.618,11.78279172]
[1770559193672,0.45036332,88.653,88.618,11.28438917]
[1770559194875,0.45036332,88.653,88.618,11.78279172]
[1770559195062,0.45036332,88.653,88.619,0.49840255]
[1770559196374,0.45036332,88.653,88.601,3.5]
[1770559196375,0.45036332,88.653,88.621,0.49840255]
[1770559196601,0.1,88.67,88.621,0.49840255]
[1770559196875,0.55036332,88.67,88.624,0.49840255]
[1770559197986,0.1,88.67,88.624,0.49840255]
[1770559198176,0.45036332,88.659,88.624,0.49840255]
[1770559198381,0.45036332,88.659,88.625,11.28349788]
[1770559199069,0.45036332,88.659,88.625,11.78190043]
[1770559199375,0.45036332,88.659,88.598,56.43433507]
[1770559199376,0.45036332,88.659,88.626,0.49840255]
[1770559200390,0.45036332,88.665,88.626,0.49840255]
[1770559200566,0.1,88.67,88.628,0.49840255]
[1770559201785,0.1,88.67,88.616,6.2587894]
[1770559201786,0.45036332,88.669,88.633,0.49840255]
[1770559201988,0.1,88.68,88.635,0.49840255]
[1770559202991,28.17513491,88.731,88.642,0.49840255]
[1770559203197,11.27133955,88.721,88.656,0.49840255]
[1770559203688,28.17165861,88.742,88.661,0.49840255]
[1770559203900,0.45036332,88.704,88.661,0.49840255]
[1770559204294,0.55036332,88.7,88.661,0.49840255]
[1770559204868,28.17165861,88.742,88.66,5.13032502]
[1770559205180,28.17165861,88.742,88.662,0.49840255]
[1770559205984,28.17165861,88.742,88.664,0.49840255]
[1770559207074,0.41159494,88.709,88.664,0.49840255]
[1770559207902,0.41159493,88.707,88.666,0.49840255]
[1770559209376,56.43802816,88.75,88.666,0.49840255]
[1770559209377,0.41159492,88.733,88.666,0.49840255]
[1770559209580,0.41159492,88.729,88.67,0.49840255]
[1770559209781,0.41159492,88.728,88.67,0.49840255]
[1770559210302,0.41159491,88.726,88.672,0.49840255]
[1770559210797,0.41159491,88.726,88.671,11.27764432]
[1770559211101,0.41159491,88.726,88.672,0.49840255]
[1770559212003,11.26920328,88.738,88.674,5.13032502]
[1770559212181,102.9,88.768,88.674,5.13032502]
[1770559212182,0.51159489,88.73,88.675,0.49840255]
[1770559212487,0.51159489,88.73,88.68,0.49840255]
[1770559214000,11.2702724,88.729,88.68,0.49840255]
[1770559214306,0.41159488,88.728,88.68,0.49840255]
[1770559215801,0.41159485,88.726,88.673,11.27729406]
[1770559216618,5.13032502,88.724,88.652,0.46053563]
[1770559216805,5.13032502,88.724,88.656,11.27954989]
[1770559217007,5.13032502,88.724,88.652,0.46053563]
[1770559217200,5.13032502,88.724,88.638,0.50000037]
[1770559217385,5.13032502,88.724,88.658,11.27928404]
[1770559217580,5.13032502,88.724,88.659,0.50000037]
[1770559217990,5.13032502,88.72,88.654,0.50000037]
[1770559218211,95.80379382,88.723,88.661,0.50000037]
[1770559218789,39.44862098,88.723,88.661,0.50000037]
[1770559218999,11.27103456,88.723,88.661,0.50000037]
[1770559219195,11.27032048,88.729,88.664,0.50000037]
[1770559219696,0.1,88.73,88.665,0.50000037]
[1770559219905,0.1,88.73,88.67,0.50000037]
[1770559222710,0.1,88.73,88.672,0.50000037]
[1770559223091,0.1,88.73,88.674,0.50000037]
[1770559224697,0.45321947,88.729,88.674,39.4704201]
[1770559224895,0.45321947,88.729,88.674,39.47041973]
[1770559226917,0.45321947,88.727,88.677,0.46053563]
[1770559228106,0.45321947,88.727,88.679,0.46053563]
[1770559229611,0.45321947,88.725,88.679,0.46053563]
[1770559230714,0.45321947,88.723,88.681,0.46053563]
[1770559231415,0.45321947,88.723,88.68,11.27649977]
[1770559231917,0.45321947,88.723,88.681,0.46053563]
[1770559232797,0.45321947,88.721,88.674,0.46053563]
[1770559233802,0.45321947,88.721,88.666,28.65622962]
[1770559234011,0.45321947,88.721,88.666,0.46053563]
[1770559234214,0.45321947,88.721,88.664,96.21550239]
[1770559234896,5.36086188,88.716,88.636,0.46053563]
[1770559235103,5.36086188,88.716,88.638,11.28183939]
[1770559235320,5.13032502,88.717,88.639,0.5000003]
[1770559235509,5.13032502,88.717,88.634,0.5000003]
[1770559235899,7.08036108,88.716,88.634,0.5000003]
[1770559236099,7.08036108,88.716,88.593,5.36086188]
[1770559236100,5.13032502,88.708,88.635,0.5000003]
[1770559236402,5.13032502,88.707,88.635,0.5000003]
[1770559236612,12.2139975,88.706,88.635,0.5000003]
[1770559236822,95.82431456,88.704,88.635,0.5000003]
[1770559237028,5.13032502,88.701,88.635,0.5000003]
[1770559237904,5.13032502,88.7,88.635,0.5000003]
[1770559239428,5.13032502,88.696,88.606,0.5000003]
[1770559240203,5.13032502,88.696,88.619,11.28424163]
[1770559240527,5.13032502,88.692,88.62,0.5000003]
[1770559240728,95.83403798,88.695,88.62,0.5000003]
[1770559241036,39.46107446,88.695,88.62,0.5000003]
[1770559242527,5.13032502,88.692,88.621,0.5000003]
[1770559242724,5.13032502,88.692,88.597,5.13032502]
[1770559242725,5.13032502,88.692,88.598,0.5000003]
[1770559242908,84.55944528,88.695,88.591,0.5000003]
[1770559242909,5.36086188,88.679,88.591,0.5000003]
[1770559243108,5.13032502,88.668,88.596,0.5000003]
[1770559243312,5.13032502,88.664,88.596,0.5000003]
[1770559243725,5.36086188,88.662,88.582,11.78886784]
[1770559243932,10.4911869,88.659,88.582,0.5000003]
[1770559244728,5.13032502,88.647,88.582,0.5000003]
[1770559244927,5.13032502,88.643,88.582,0.5000003]